bitfinex-derivatives/quotes_SOLF0:USTF0_20241216
["timestamp","ask_amount","ask_price","bid_price","bid_amount"]
[1734322133980,8.37587611,221.76,221.68,6.15587611]
[1734322134379,2.2564,221.71,221.68,6.15587611]
[1734322134578,8.37587611,221.76,221.68,6.15587611]
[1734322135480,2.2564,221.7,221.68,6.15587611]
[1734322135679,8.37587611,221.76,221.68,6.15587611]
[1734322136377,2.2564,221.7,221.68,6.15587611]
[1734322137484,2.2565,221.69,221.68,6.15587611]
[1734322139382,2.2565,221.69,221.66,6.15587611]
[1734322139779,6.15587611,221.74,221.66,6.15587611]
[1734322139975,2.2568,221.66,221.64,11.51487507]
[1734322140175,6.15587611,221.74,221.64,11.51487507]
[1734322140779,2.2569,221.65,221.64,11.51487507]
[1734322147289,6.15587611,221.68,221.42,51.9280351]
[1734322147488,6.15587611,221.66,221.59,6.15587611]
[1734322147686,8.37587611,221.66,221.59,6.15587611]
[1734322147995,2.2574,221.6,221.59,6.15587611]
[1734322151590,2.2574,221.6,221.55,2.22]
[1734322151591,2.2576,221.59,221.57,6.15587611]
[1734322152483,6.15587611,221.64,221.57,6.15587611]
[1734322152689,2.2576,221.58,221.56,5.44608528]
[1734322152888,2.2576,221.58,221.55,6.15587611]
[1734322155491,2.2576,221.58,221.55,11.63088965]
[1734322156092,2.2576,221.58,221.55,6.15587611]
[1734322158387,2.2576,221.58,221.55,11.50784446]
[1734322159091,6.15587611,221.64,221.55,11.50784446]
[1734322159290,2.22,221.68,221.6,6.15587611]
[1734322159490,1.5371,221.73,221.6,6.15587611]
[1734322159794,2.2571,221.64,221.6,6.15587611]
[1734322160397,2.2571,221.63,221.6,6.15587611]
[1734322162687,2.2573,221.62,221.57,2.2576]
[1734322162891,2.2573,221.62,221.59,6.15587611]
[1734322166304,2.2571,221.63,221.59,8.41337611]
[1734322169900,2.2567,221.67,221.62,2.2572]
[1734322170104,2.2567,221.67,221.63,6.15587611]
[1734322170808,2.2567,221.67,221.63,8.41287611]
[1734322175404,2.2566,221.68,221.63,8.41287611]
[1734322176102,2.2567,221.67,221.63,6.15587611]
[1734322177413,2.2567,221.67,221.63,8.41287611]
[1734322181411,6.15587611,221.67,221.59,5.4377105]
[1734322181607,6.15587611,221.67,221.6,6.15587611]
[1734322181904,2.257,221.64,221.6,11.19729327]
[1734322182110,2.257,221.64,221.6,16.23873239]
[1734322182311,2.257,221.64,221.61,5.04143912]
[1734322182506,2.257,221.64,221.62,5.04143912]
[1734322182812,2.257,221.64,221.6,7.29881716]
[1734322183008,2.257,221.64,221.61,5.04209835]
[1734322183210,2.257,221.64,221.62,5.04209835]
[1734322183508,2.257,221.64,221.6,7.29881716]
[1734322183709,2.257,221.64,221.61,5.04267817]
[1734322183911,2.257,221.64,221.62,5.04267817]
[1734322184111,2.257,221.64,221.6,7.29881716]
[1734322184312,2.257,221.64,221.61,5.04284978]
[1734322184510,2.257,221.64,221.6,7.29881716]
[1734322184511,2.257,221.64,221.62,5.04284978]
[1734322184714,2.257,221.64,221.6,7.29881716]
[1734322184907,2.257,221.64,221.61,5.04339432]
[1734322185209,2.2569,221.66,221.62,5.04339432]
[1734322185418,2.2569,221.66,221.61,2.2573]
[1734322185615,2.2569,221.66,221.62,5.04354365]
[1734322185813,2.2569,221.66,221.63,5.04354365]
[1734322186014,2.2569,221.66,221.61,2.2573]
[1734322186214,2.2569,221.66,221.62,5.04354125]
[1734322186409,2.2569,221.66,221.63,5.04354125]
[1734322186611,2.2569,221.66,221.61,2.2573]
[1734322187214,2.2569,221.66,221.62,2.2571]
[1734322187618,2.2567,221.67,221.62,2.2571]
[1734322189117,2.2567,221.67,221.63,2.2571]
[1734322189313,16.78989962,221.73,221.63,6.15587611]
[1734322189511,8.37587611,221.72,221.64,5.04470608]
[1734322189711,2.22,221.72,221.65,2.2568]
[1734322189920,247.57883762,221.74,221.67,6.15587611]
[1734322190215,8.37587611,221.75,221.68,2.2566]
[1734322190414,2.2562,221.73,221.68,2.2566]
[1734322191012,2.256,221.74,221.7,2.2563]
[1734322191215,7.61727611,221.77,221.7,2.2563]
[1734322192410,2.2559,221.75,221.7,2.2563]
[1734322193210,7.61727611,221.77,221.65,3.0268]
[1734322193211,6.15587611,221.73,221.65,3.0268]
[1734322193416,1.4614,221.77,221.68,2.2565]
[1734322193417,6.15587611,221.75,221.68,2.2565]
[1734322193620,6.15587611,221.75,221.67,6.15587611]
[1734322193917,6.15587611,221.75,221.68,5.03776468]
[1734322194116,6.15587611,221.75,221.67,6.15587611]
[1734322194517,6.15587611,221.75,221.69,2.2564]
[1734322194518,2.256,221.74,221.69,2.2564]
[1734322195115,2.2562,221.72,221.68,2.2565]
[1734322195314,2.2562,221.72,221.67,6.15587611]
[1734322195616,6.15587611,221.73,221.67,6.15587611]
[1734322195816,2.2563,221.71,221.67,8.41247611]
[1734322197419,2.2563,221.71,221.67,2.2566]
[1734322198913,2.2563,221.71,221.65,9.18267611]
[1734322199120,2.2565,221.69,221.66,5.0354254]
[1734322199313,6.15587611,221.72,221.65,2.2568]
[1734322199511,6.15587611,221.72,221.66,5.035284]
[1734322199719,6.15587611,221.72,221.65,2.2568]
[1734322199915,6.15587611,221.72,221.66,5.03573833]
[1734322200113,6.15587611,221.72,221.65,2.2568]
[1734322200318,6.15587611,221.72,221.66,5.03663236]
[1734322200520,2.2564,221.7,221.65,2.2568]
[1734322200723,2.2564,221.7,221.66,5.03770427]
[1734322201119,2.2564,221.7,221.65,2.2568]
[1734322201319,2.2564,221.7,221.66,5.03807894]
[1734322201621,2.2564,221.7,221.65,2.2568]
[1734322201815,2.2564,221.7,221.66,5.0378834]
[1734322202019,2.2564,221.7,221.66,6.15587611]
[1734322202821,2.2565,221.69,221.66,6.15587611]
[1734322203325,6.15587611,221.73,221.66,6.15587611]
[1734322204222,2.2562,221.71,221.66,6.15587611]
[1734322205525,6.15587611,221.73,221.67,5.03904962]
[1734322205729,2.2563,221.7,221.66,8.41257611]
[1734322205921,2.2563,221.7,221.67,5.03904962]
[1734322206223,2.2563,221.7,221.66,8.41257611]
[1734322206423,2.2563,221.7,221.67,5.03911447]
[1734322206626,2.2563,221.7,221.66,8.41257611]
[1734322206924,2.2563,221.7,221.67,5.03911447]
[1734322207124,2.2562,221.72,221.66,6.15587611]
[1734322207320,2.2562,221.72,221.67,7.29576398]
[1734322207525,2.2562,221.72,221.67,2.2566]
[1734322208425,2.2563,221.71,221.67,2.2566]
[1734322211417,2.2563,221.7,221.67,2.2566]
[1734322211624,6.15587611,221.73,221.66,6.15587611]
[1734322211818,6.15587611,221.69,221.6,1.568]
[1734322212023,2.2569,221.65,221.61,5.04035858]
[1734322212227,2.2569,221.65,221.62,5.04035858]
[1734322212424,2.2569,221.65,221.61,6.15587611]
[1734322212623,2.2569,221.65,221.62,5.0411992]
[1734322212828,2.2569,221.65,221.61,6.15587611]
[1734322213427,2.2569,221.65,221.61,8.41307611]
[1734322213628,2.2569,221.65,221.62,5.04161591]
[1734322213825,2.2569,221.65,221.61,8.41307611]
[1734322214022,2.2569,221.65,221.62,5.041617]
[1734322214328,2.2569,221.65,221.61,8.41307611]
[1734322214527,2.2569,221.65,221.62,5.04217017]
[1734322214724,2.2569,221.65,221.61,8.41307611]
[1734322215029,2.2569,221.65,221.62,5.04212166]
[1734322215231,2.2569,221.65,221.61,8.41307611]
[1734322215420,2.2569,221.65,221.62,5.04210016]
[1734322215624,2.22,221.7,221.61,6.15587611]
[1734322215823,2.2566,221.68,221.63,8.41287611]
[1734322216024,8.37587611,221.7,221.63,8.41287611]
[1734322217026,2.22,221.72,221.64,7.2987796]
[1734322217230,8.37587611,221.72,221.63,6.15587611]
[1734322217429,8.37587611,221.72,221.64,5.04190609]
[1734322217625,8.37587611,221.72,221.65,6.15587611]
[1734322217827,2.22,221.74,221.65,8.41267611]
[1734322218132,6.15587611,221.73,221.65,8.41267611]
[1734322219025,6.15587611,221.71,221.63,10.63287611]
[1734322219230,6.15587611,221.71,221.64,5.04171774]
[1734322219426,6.15587611,221.71,221.65,5.04171774]
[1734322219828,6.15587611,221.71,221.63,8.37587611]
[1734322220026,6.15587611,221.71,221.64,5.04172825]
[1734322220233,6.15587611,221.71,221.65,5.04172825]
[1734322220436,2.2567,221.67,221.63,8.37587611]
[1734322220631,2.2567,221.67,221.64,5.04177365]
[1734322220935,2.2567,221.67,221.63,8.37587611]
[1734322221232,2.2567,221.67,221.64,5.04204012]
[1734322221435,2.2567,221.67,221.63,8.37587611]
[1734322221734,2.2567,221.67,221.64,5.0421301]
[1734322221935,2.2567,221.67,221.63,8.37587611]
[1734322222231,2.2568,221.66,221.64,5.04212763]
[1734322222430,6.15587611,221.71,221.63,8.37587611]
[1734322222835,6.15587611,221.71,221.63,6.15587611]
[1734322223236,2.2569,221.65,221.61,6.15587611]
[1734322223431,2.22,221.74,221.63,6.15587611]
[1734322223738,6.15587611,221.72,221.64,7.29905486]
[1734322223940,6.15587611,221.72,221.64,2.2569]
[1734322224533,2.2566,221.68,221.64,2.2569]
[1734322225245,2.2566,221.68,221.64,8.41277611]
[1734322226139,2.2567,221.67,221.64,6.15587611]
[1734322226342,2.2567,221.67,221.63,2.2571]
[1734322226532,2.2567,221.67,221.64,5.04224743]
[1734322226732,2.2567,221.67,221.63,8.41297611]
[1734322227232,2.2567,221.67,221.64,5.04229146]
[1734322227435,2.2567,221.67,221.63,8.41297611]
[1734322227640,2.2566,221.68,221.64,7.29941986]
[1734322227936,2.2566,221.68,221.64,2.2569]
[1734322228136,6.15587611,221.72,221.63,6.15587611]
[1734322228335,2.2567,221.67,221.64,5.04256601]
[1734322228538,2.2567,221.67,221.65,5.0426566]
[1734322228744,6.15587611,221.72,221.63,6.15587611]
[1734322228941,6.15587611,221.72,221.64,5.04265687]
[1734322229245,6.15587611,221.72,221.65,5.04265687]
[1734322229443,2.2566,221.68,221.64,2.257]
[1734322229636,2.2566,221.68,221.65,5.04295308]
[1734322229943,2.2566,221.68,221.64,2.257]
[1734322230134,6.15587611,221.72,221.64,2.257]
[1734322230135,2.2566,221.67,221.64,2.257]
[1734322230340,2.2566,221.67,221.65,5.04296039]
[1734322230640,2.2566,221.67,221.64,2.257]
[1734322230841,2.2566,221.67,221.65,5.04321639]
[1734322231042,2.2566,221.67,221.64,2.257]
[1734322231345,2.2566,221.67,221.65,5.04321639]
[1734322231543,2.2566,221.67,221.64,2.257]
[1734322231744,2.2566,221.67,221.65,5.04368397]
[1734322231939,2.2566,221.67,221.64,2.257]
[1734322232140,2.2566,221.67,221.65,5.04368397]
[1734322232344,2.2566,221.67,221.66,5.04368397]
[1734322234947,2.2566,221.67,221.64,2.257]
[1734322235242,6.15587611,221.72,221.65,5.04566854]
[1734322235447,2.2566,221.68,221.66,5.04566854]
[1734322235650,2.2566,221.68,221.64,2.257]
[1734322235843,2.2566,221.68,221.65,5.04558687]
[1734322236044,2.2566,221.68,221.66,5.04558687]
[1734322236343,6.15587611,221.7,221.62,2.22]
[1734322236548,2.2569,221.65,221.63,5.04586966]
[1734322236748,2.2569,221.65,221.64,5.04586966]
[1734322236946,2.2569,221.65,221.64,5.04589897]
[1734322237354,2.2569,221.65,221.64,5.04643901]
[1734322239252,2.2568,221.66,221.64,5.04643901]
[1734322239549,2.2568,221.66,221.65,5.04643901]
[1734322242657,2.2568,221.66,221.62,6.15587611]
[1734322242855,2.2568,221.66,221.63,5.04785303]
[1734322243050,2.2568,221.66,221.64,5.04785303]
[1734322243357,2.2568,221.66,221.62,6.15587611]
[1734322243551,2.2568,221.66,221.63,5.04802891]
[1734322245056,2.2568,221.66,221.64,5.04802891]
[1734322245246,2.2568,221.66,221.65,5.04802891]
[1734322245447,6.15587611,221.7,221.65,5.04802891]
[1734322245651,2.2565,221.69,221.66,11.20397222]
[1734322245852,2.2565,221.69,221.66,6.15587611]
[1734322246055,2.2565,221.69,221.67,5.04802259]
[1734322246254,2.2565,221.69,221.66,6.15587611]
[1734322246858,2.2565,221.69,221.67,5.04824436]
[1734322247052,6.15587611,221.74,221.67,5.04824436]
[1734322247253,2.22,221.75,221.67,2.2567]
[1734322247254,2.2563,221.71,221.67,2.2567]
[1734322247558,8.37587611,221.75,221.68,5.04818888]
[1734322247761,2.2565,221.69,221.65,6.15587611]
[1734322247957,2.2565,221.69,221.66,5.0482559]
[1734322248158,2.2565,221.69,221.67,5.0482559]
[1734322248359,2.2565,221.69,221.68,5.0482559]
[1734322250060,6.15587611,221.73,221.68,5.0482559]
[1734322250259,2.2564,221.7,221.66,2.2567]
[1734322250456,2.2564,221.7,221.67,5.04848701]
[1734322250756,2.2564,221.7,221.66,2.2567]
[1734322250757,2.2564,221.7,221.68,5.04848701]
[1734322251062,2.2564,221.7,221.66,2.2567]
[1734322251263,2.2564,221.7,221.67,5.04856847]
[1734322251464,2.2564,221.7,221.68,5.04856847]
[1734322251664,2.2564,221.7,221.66,2.2567]
[1734322251865,2.2564,221.7,221.67,5.04853653]
[1734322252065,2.2564,221.7,221.68,5.04853653]
[1734322252269,2.2564,221.7,221.66,2.2567]
[1734322252468,2.2564,221.7,221.67,5.0485355]
[1734322252668,2.2564,221.7,221.68,5.0485355]
[1734322252871,2.2564,221.7,221.66,2.2567]
[1734322253062,2.2564,221.7,221.67,5.04854939]
[1734322253266,2.2564,221.7,221.68,5.04854939]
[1734322253569,2.2564,221.7,221.66,2.2567]
[1734322253769,2.2564,221.7,221.67,5.04858179]
[1734322254071,2.2564,221.7,221.68,5.04858179]
[1734322254271,2.2564,221.7,221.66,2.2567]
[1734322254572,2.2564,221.7,221.67,5.0485551]
[1734322254772,2.2564,221.7,221.68,5.0485551]
[1734322254971,2.2564,221.7,221.66,2.2567]
[1734322255173,2.2564,221.7,221.67,5.04856689]
[1734322255471,2.2564,221.7,221.66,2.2567]
[1734322255672,2.2564,221.7,221.67,5.04858135]
[1734322255866,2.2564,221.7,221.68,5.04858135]
[1734322256064,2.2564,221.7,221.66,2.2567]
[1734322256264,2.2564,221.7,221.67,5.04861556]
[1734322256577,2.2564,221.7,221.68,5.04861556]
[1734322256874,2.2564,221.7,221.66,2.2567]
[1734322257074,2.2564,221.7,221.67,5.04861592]
[1734322257369,2.2564,221.7,221.68,5.04861592]
[1734322257568,2.2564,221.7,221.66,2.2567]
[1734322257773,2.2564,221.7,221.67,5.04853927]
[1734322257972,2.2564,221.7,221.68,5.04853927]
[1734322258173,2.2564,221.7,221.66,2.2567]
[1734322258374,6.15587611,221.73,221.67,5.04892597]
[1734322258574,2.2563,221.71,221.68,5.04892597]
[1734322258776,2.2563,221.71,221.67,2.2567]
[1734322258971,2.2563,221.71,221.68,5.0489298]
[1734322259171,2.2563,221.71,221.67,2.2567]
[1734322259369,2.2563,221.71,221.68,5.04919329]
[1734322259677,2.2563,221.71,221.67,2.2567]
[1734322259879,2.2563,221.71,221.68,5.04919329]
[1734322260073,2.2563,221.71,221.67,2.2567]
[1734322260471,2.2563,221.71,221.68,5.04967364]
[1734322260676,2.2563,221.71,221.69,5.04967364]
[1734322260980,2.2563,221.71,221.67,2.2567]
[1734322261182,2.2563,221.71,221.68,5.04956943]
[1734322261376,2.2563,221.71,221.69,5.04956943]
[1734322261576,2.2565,221.69,221.65,2.2568]
[1734322261779,6.15587611,221.69,221.66,5.04950686]
[1734322262077,18.97512115,221.75,221.62,2.2571]
[1734322262276,12.19406987,221.75,221.63,5.04985698]
[1734322262480,6.15587611,221.69,221.64,5.04985698]
[1734322262682,6.15587611,221.69,221.65,5.04985698]
[1734322262683,2.2566,221.68,221.65,5.04985698]
[1734322262872,2.2566,221.68,221.66,5.04976388]
[1734322263181,2.2566,221.68,221.61,6.15587611]
[1734322263375,2.2566,221.68,221.62,10.54150701]
[1734322263582,2.2566,221.68,221.63,5.04975227]
[1734322263877,2.2566,221.68,221.64,5.04975227]
[1734322264180,2.2566,221.68,221.65,5.04975227]
[1734322264378,2.2566,221.68,221.62,5.49175474]
[1734322264582,2.2567,221.67,221.63,5.0496829]
[1734322264881,2.2567,221.67,221.64,5.0496829]
[1734322265081,2.2567,221.67,221.62,5.49175474]
[1734322265284,2.2567,221.67,221.63,5.04957718]
[1734322265478,2.2567,221.67,221.64,5.04957718]
[1734322265782,2.2567,221.67,221.63,2.257]
[1734322265982,2.2567,221.67,221.64,5.04959292]
[1734322266278,2.2567,221.67,221.63,2.257]
[1734322266481,2.2567,221.67,221.64,5.04941369]
[1734322266682,2.2567,221.67,221.65,5.04941369]
[1734322266879,2.2567,221.67,221.63,2.257]
[1734322267080,2.2567,221.67,221.64,5.04939395]
[1734322267277,2.2567,221.67,221.65,5.04939395]
[1734322267577,2.2567,221.67,221.63,2.257]
[1734322267781,2.2567,221.67,221.64,5.0493495]
[1734322268082,2.2567,221.67,221.65,5.0493495]
[1734322268381,2.2567,221.67,221.63,2.257]
[1734322268583,2.2567,221.67,221.64,5.04949578]
[1734322268885,2.2567,221.67,221.65,5.04949578]
[1734322269081,2.2567,221.67,221.63,2.257]
[1734322269473,2.2567,221.67,221.64,5.0495395]
[1734322269674,2.2567,221.67,221.65,5.0495395]
[1734322269984,2.2567,221.67,221.63,2.257]
[1734322270285,2.2567,221.67,221.64,5.04953956]
[1734322270478,2.2567,221.67,221.65,5.04953956]
[1734322270679,2.2567,221.67,221.66,5.04946355]
[1734322271083,2.2567,221.67,221.63,2.257]
[1734322271383,2.2567,221.67,221.64,5.04949144]
[1734322271589,2.2567,221.67,221.65,5.04949144]
[1734322271782,2.2567,221.67,221.63,2.257]
[1734322271983,2.2567,221.67,221.64,5.04950613]
[1734322272179,2.2567,221.67,221.65,5.04950613]
[1734322272385,2.2567,221.67,221.63,2.257]
[1734322272586,2.2567,221.67,221.64,5.04955629]
[1734322272883,2.2567,221.67,221.65,5.04955629]
[1734322273079,2.2567,221.67,221.63,2.257]
[1734322273283,2.2567,221.67,221.64,5.04950129]
[1734322273483,2.2567,221.67,221.65,5.04950129]
[1734322273683,2.2567,221.67,221.63,2.257]
[1734322273979,2.2567,221.67,221.64,5.04950129]
[1734322274182,2.2567,221.67,221.65,5.04950129]
[1734322274380,2.2567,221.67,221.63,2.257]
[1734322274582,2.2567,221.67,221.64,5.04938115]
[1734322274788,2.2567,221.67,221.65,5.04938115]
[1734322275089,2.2567,221.67,221.63,8.41287611]
[1734322275288,2.2567,221.67,221.64,5.04927397]
[1734322275587,2.2567,221.67,221.65,5.04927397]
[1734322275783,2.2567,221.67,221.63,8.41287611]
[1734322275987,2.2567,221.67,221.64,5.04928867]
[1734322276189,2.2567,221.67,221.63,8.41287611]
[1734322276389,2.2567,221.67,221.65,5.04917887]
[1734322276587,6.15587611,221.74,221.65,6.15587611]
[1734322276788,1.4614,221.77,221.67,6.15587611]
[1734322277086,2.2558,221.75,221.7,2.2562]
[1734322277980,2.2558,221.75,221.71,5.04760729]
[1734322278185,2.2558,221.75,221.7,2.2562]
[1734322278383,2.2558,221.75,221.71,5.04660223]
[1734322278584,2.2558,221.75,221.7,2.2562]
[1734322278791,2.2558,221.75,221.71,5.04657897]
[1734322278988,2.2558,221.75,221.7,2.2562]
[1734322279185,2.2558,221.75,221.71,5.04654727]
[1734322279380,2.2558,221.75,221.7,2.2562]
[1734322279685,2.2558,221.75,221.71,5.04551222]
[1734322279887,2.2558,221.75,221.7,2.2562]
[1734322280081,2.2558,221.75,221.71,5.0455269]
[1734322280286,2.2558,221.75,221.7,2.2562]
[1734322280586,2.2558,221.75,221.71,5.04454398]
[1734322280788,2.2558,221.75,221.7,2.2562]
[1734322280987,2.2558,221.75,221.71,5.0445293]
[1734322281188,2.2558,221.75,221.7,2.2562]
[1734322281489,2.2558,221.75,221.71,5.04351557]
[1734322281689,2.2558,221.75,221.7,2.2562]
[1734322281890,2.2558,221.75,221.71,5.04353024]
[1734322282090,2.2558,221.75,221.7,2.2562]
[1734322282286,2.2558,221.75,221.71,5.04272696]
[1734322282484,2.2559,221.74,221.71,5.04272696]
[1734322282787,6.15587611,221.75,221.68,2.2564]
[1734322282988,6.15587611,221.73,221.69,5.04278236]
[1734322283189,6.15587611,221.73,221.7,5.04278236]
[1734322283397,6.15587611,221.73,221.66,9.87727611]
[1734322283586,6.15587611,221.73,221.67,5.04233916]
[1734322283792,6.15587611,221.73,221.68,5.04233916]
[1734322283988,6.15587611,221.73,221.65,8.41257611]
[1734322283989,2.2564,221.69,221.65,8.41257611]
[1734322284289,2.2564,221.69,221.66,5.04315474]
[1734322284487,2.2564,221.69,221.67,5.04315474]
[1734322284690,2.2564,221.69,221.65,8.41257611]
[1734322284891,2.2564,221.69,221.66,5.04305265]
[1734322285086,2.2564,221.69,221.67,5.04305265]
[1734322285292,2.2565,221.68,221.64,8.35587611]
[1734322285488,2.2565,221.68,221.65,5.04318637]
[1734322285691,2.2565,221.68,221.64,8.35587611]
[1734322286287,2.2565,221.68,221.65,5.04337076]
[1734322286488,2.2566,221.68,221.64,8.35587611]
[1734322286691,2.2566,221.68,221.65,5.0434621]
[1734322286893,2.2566,221.68,221.66,5.04330223]
[1734322287096,2.2566,221.68,221.64,2.2]
[1734322287391,2.2566,221.68,221.65,5.04354773]
[1734322287592,2.2566,221.68,221.64,2.2]
[1734322287798,2.2566,221.68,221.65,5.04355253]
[1734322287991,2.2566,221.68,221.64,2.2]
[1734322288197,2.2566,221.68,221.65,5.04341434]
[1734322288392,2.2566,221.68,221.66,5.04341434]
[1734322288592,2.2566,221.68,221.64,2.2]
[1734322288792,2.2566,221.68,221.65,5.04365676]
[1734322289093,2.2566,221.68,221.64,2.2]
[1734322289399,2.2566,221.68,221.65,5.0436382]
[1734322289600,2.2566,221.68,221.66,5.0436382]
[1734322289799,2.2566,221.68,221.64,2.2]
[1734322290100,2.2566,221.68,221.66,6.15587611]
[1734322290598,2.2566,221.68,221.64,10.61277611]
[1734322290803,2.2566,221.68,221.65,5.04390757]
[1734322290999,2.2566,221.68,221.66,5.04390757]
[1734322291200,2.2566,221.68,221.64,10.61277611]
[1734322291398,2.2566,221.68,221.65,5.04391415]
[1734322291600,2.2566,221.68,221.66,5.04391415]
[1734322291800,2.2566,221.68,221.64,10.61277611]
[1734322292102,2.2566,221.68,221.65,5.04391415]
[1734322292302,2.2566,221.68,221.66,5.04391415]
[1734322292504,2.2566,221.68,221.64,10.61277611]
[1734322292703,2.2565,221.69,221.65,5.0438143]
[1734322292896,2.2565,221.69,221.66,5.0438143]
[1734322293100,2.2565,221.69,221.67,5.0438143]
[1734322293299,2.2565,221.69,221.64,8.41277611]
[1734322293502,2.2565,221.69,221.65,5.0439149]
[1734322293701,2.2565,221.69,221.66,5.0439149]
[1734322293903,2.2565,221.69,221.64,8.41277611]
[1734322294101,2.2565,221.69,221.65,7.30073311]
[1734322294402,2.2565,221.69,221.66,5.04393311]
[1734322294598,2.2565,221.69,221.67,5.04393311]
[1734322294798,2.2565,221.69,221.65,2.2568]
[1734322294994,2.2565,221.69,221.66,5.04384338]
[1734322295203,2.2565,221.69,221.67,5.04384338]
[1734322295403,2.2565,221.69,221.65,2.2568]
[1734322295603,2.2565,221.69,221.66,5.04382591]
[1734322295803,2.2565,221.69,221.67,5.04382591]
[1734322296003,2.2565,221.69,221.65,2.2568]
[1734322296510,2.2565,221.69,221.66,5.04386016]
[1734322296805,2.2565,221.69,221.67,5.04386016]
[1734322297006,2.2565,221.69,221.65,2.2568]
[1734322297205,2.2565,221.69,221.66,5.04384097]
[1734322297499,2.2565,221.69,221.67,5.04384097]
[1734322297701,2.2565,221.69,221.65,2.2568]
[1734322297905,8.35587611,221.74,221.66,13.45639032]
[1734322297906,2.2563,221.71,221.66,13.45639032]
[1734322298096,2.2563,221.71,221.67,5.04381421]
[1734322298300,2.2563,221.71,221.68,5.04381421]
[1734322298602,2.2563,221.71,221.66,8.41257611]
[1734322298804,2.2563,221.71,221.67,5.04363584]
[1734322299004,2.2,221.74,221.68,5.04363584]
[1734322299310,2.2563,221.7,221.66,8.41257611]
[1734322299703,2.2563,221.7,221.67,5.04356182]
[1734322299903,2.2563,221.7,221.68,5.04356182]
[1734322300199,2.2563,221.7,221.66,8.41257611]
[1734322300404,2.2563,221.7,221.67,5.04359307]
[1734322300603,2.2563,221.7,221.66,8.41257611]
[1734322300803,2.2563,221.7,221.67,5.0436371]
[1734322301106,2.2563,221.7,221.66,2.2567]
[1734322301410,6.15587611,221.73,221.67,5.04363372]
[1734322301605,6.15587611,221.73,221.66,6.15587611]
[1734322301806,2.2564,221.7,221.67,5.04381139]
[1734322302000,2.2564,221.7,221.66,6.15587611]
[1734322302205,2.2564,221.7,221.67,5.04383956]
[1734322302404,2.2564,221.69,221.66,8.41257611]
[1734322302604,2.2564,221.69,221.67,5.04384504]
[1734322302907,2.2564,221.69,221.66,8.41257611]
[1734322303207,2.2564,221.69,221.67,5.0438768]
[1734322303401,2.2564,221.69,221.66,8.41257611]
[1734322303606,2.2564,221.69,221.67,5.0439086]
[1734322303905,2.2564,221.69,221.66,6.15587611]
[1734322304206,2.2564,221.69,221.65,2.2568]
[1734322304207,2.2564,221.69,221.67,5.04390672]
[1734322304409,2.2564,221.69,221.65,8.41267611]
[1734322304708,2.2564,221.69,221.66,5.04396546]
[1734322304902,2.2564,221.69,221.65,8.41267611]
[1734322304903,2.2564,221.69,221.67,5.04396546]
[1734322305099,2.2564,221.69,221.65,8.41267611]
[1734322305400,2.2564,221.69,221.66,5.04407706]
[1734322305601,2.2564,221.69,221.67,5.04407706]
[1734322305801,2.2564,221.69,221.65,8.41267611]
[1734322306008,2.2564,221.69,221.66,5.04409418]
[1734322306301,2.2564,221.69,221.67,5.04409418]
[1734322306506,2.2564,221.69,221.65,8.41267611]
[1734322306705,2.2564,221.69,221.66,5.04410536]
[1734322306903,2.2564,221.69,221.67,5.04410536]
[1734322307107,2.2564,221.69,221.65,8.41267611]
[1734322307309,2.2564,221.69,221.66,5.04432079]
[1734322307610,2.2564,221.69,221.67,5.04432079]
[1734322307811,2.2564,221.69,221.65,8.41267611]
[1734322308010,2.2564,221.69,221.66,5.04430512]
[1734322308213,1.4614,221.77,221.67,11.20018123]
[1734322308508,2.2,221.76,221.69,6.15587611]
[1734322308815,2.256,221.73,221.69,6.15587611]
[1734322310410,2.256,221.73,221.7,5.04402491]
[1734322310611,2.256,221.73,221.69,8.41227611]
[1734322310811,2.256,221.73,221.7,5.04399956]
[1734322311013,2.256,221.73,221.69,8.41227611]
[1734322311214,2.256,221.73,221.7,5.04387175]
[1734322311411,2.256,221.73,221.69,8.41227611]
[1734322311615,2.256,221.73,221.7,5.04406907]
[1734322311915,2.256,221.73,221.69,8.41227611]
[1734322312112,2.256,221.73,221.7,5.0440544]
[1734322312312,2.256,221.73,221.69,8.41227611]